bitfinex/quotes_ETHUSD_20251108
["timestamp","ask_amount","ask_price","bid_price","bid_amount"]
[1762592996563,2.89569667,3453.5,3453.3,0.3013]
[1762592997361,1.259712,3453.7,3453.4,0.3013]
[1762592997560,2.89557335,3453.6,3453.4,0.3013]
[1762592997762,2.89553699,3453.6,3453.4,0.3013]
[1762592998862,2.89561314,3453.5,3453.4,0.3013]
[1762592999609,2.89554101,3453.6,3453.4,0.3013]
[1762593001574,2.89561314,3453.5,3453.4,0.3013]
[1762593001774,2.89545223,3453.7,3453.4,0.3013]
[1762593001775,3.36722059,3453.8,3453.4,0.3013]
[1762593001988,0.144,3453.5,3453.4,0.3013]
[1762593003775,3.03961314,3453.5,3453.4,0.3013]
[1762593007218,0.144,3453.5,3453.1,0.33016]
[1762593007382,2.89574899,3453.4,3453.1,0.02886]
[1762593007583,2.89569699,3453.4,3453.1,0.02886]
[1762593007809,2.89569699,3453.4,3453.1,0.02986]
[1762593009390,3.03965,3453.5,3453.1,0.02986]
[1762593010085,3.03965,3453.5,3453.1,0.33116]
[1762593011215,0.144,3453.5,3453.4,0.3013]
[1762593011510,2.04005108,3453.7,3453.4,0.6026]
[1762593011709,2.04005108,3453.7,3453.6,0.3013]
[1762593011913,1.403712,3453.8,3453.6,0.3013]
[1762593012479,0.144,3453.8,3453.6,0.3013]
[1762593012910,1.403712,3453.8,3453.6,0.3013]
[1762593013119,0.144,3453.8,3453.7,0.3013]
[1762593013908,0.78033908,3454.0,3453.7,0.6026]
[1762593014108,0.92633908,3454.2,3453.6,0.144]
[1762593014308,2.89566028,3453.5,3453.1,0.02986]
[1762593014510,1.69592269,3454.1,3453.1,0.17386]
[1762593014511,1.403712,3453.7,3453.1,0.17386]
[1762593014816,1.403712,3453.7,3453.1,0.02986]
[1762593014817,0.144,3453.3,3453.1,0.02986]
[1762593015502,2.8958647,3453.2,3453.1,0.001]
[1762593015702,3.03981648,3453.3,3453.1,0.001]
[1762593016515,3.03978153,3453.3,3453.1,0.001]
[1762593017710,0.144,3453.3,3453.1,0.001]
[1762593018102,0.144,3453.3,3453.2,0.3013]
[1762593018533,0.144,3453.6,3453.2,0.6026]
[1762593018840,3.03954565,3453.6,3453.2,0.6026]
[1762593019157,2.89562387,3453.5,3453.2,0.3013]
[1762593019436,3.03957352,3453.6,3453.2,0.3013]
[1762593019650,2.89574943,3453.4,3453.2,0.3013]
[1762593019943,2.89574943,3453.4,3453.1,0.001]
[1762593020152,2.89564452,3453.5,3453.1,0.001]
[1762593020322,2.89572658,3453.4,3453.1,0.001]
[1762593023615,2.8956252,3453.5,3453.1,0.001]
[1762593024217,0.144,3453.6,3453.4,0.3013]
[1762593024516,0.144,3453.6,3453.5,0.3013]
[1762593026521,0.144,3453.6,3453.2,2.89583043]
[1762593026522,0.146,3453.6,3453.1,0.3023]
[1762593026720,0.146,3453.6,3453.1,2.8969458]
[1762593027232,0.146,3453.6,3453.1,3.1982458]
[1762593027419,0.146,3453.6,3453.1,2.8969458]
[1762593027846,0.146,3453.6,3453.2,0.3013]
[1762593028059,0.146,3453.6,3453.1,2.8969458]
[1762593028267,0.146,3453.6,3453.1,3.1982458]
[1762593028637,3.04155959,3453.6,3453.1,0.3023]
[1762593029041,2.89561314,3453.5,3453.1,0.001]
[1762593029230,3.35351314,3453.5,3453.1,0.001]
[1762593030185,3.04156709,3453.6,3453.1,0.001]
[1762593030472,3.49946709,3453.6,3453.1,0.001]
[1762593030830,2.89563573,3453.5,3453.1,0.001]
[1762593031139,2.89582994,3453.3,3453.1,0.001]
[1762593032330,0.4837,3453.4,3453.1,0.001]
[1762593032331,3.37943231,3453.4,3453.1,0.001]
[1762593032845,2.89580525,3453.3,3453.1,0.001]
[1762593034881,3.37943568,3453.4,3453.1,0.001]
[1762593035467,3.04157384,3453.6,3453.1,0.001]
[1762593035723,3.04154364,3453.6,3453.3,0.3013]
[1762593036161,2.8956256,3453.5,3453.3,0.3013]
[1762593036570,3.0415569,3453.6,3453.4,0.3013]
[1762593036959,2.89561314,3453.5,3453.4,0.3013]
[1762593037159,2.89570083,3453.4,3453.1,0.001]
[1762593037362,3.04154626,3453.6,3453.1,0.001]
[1762593037661,3.04154626,3453.6,3453.3,0.3013]
[1762593038463,0.146,3453.6,3453.5,0.3013]
[1762593039065,3.0415293,3453.6,3453.5,0.3013]
[1762593040048,0.146,3453.6,3453.5,0.3013]
[1762593040383,0.002,3453.6,3453.5,0.6026]
[1762593040565,0.002,3453.6,3453.5,0.3013]
[1762593040771,0.002,3453.6,3453.5,0.6026]
[1762593040968,0.002,3453.6,3453.5,3.49821314]
[1762593042061,0.002,3453.6,3453.5,0.6026]
[1762593043150,0.002,3453.6,3453.5,0.3013]
[1762593044767,0.002,3453.6,3453.5,0.6026]
[1762593046598,0.002,3453.6,3453.5,3.52716927]
[1762593046897,0.002,3453.6,3453.5,3.67116927]
[1762593048686,0.002,3453.6,3453.5,3.64221314]
[1762593049058,0.002,3453.6,3453.5,3.67116927]
[1762593051520,0.002,3453.6,3453.5,3.64221314]
[1762593051816,0.002,3453.6,3453.5,4.07667327]
[1762593052522,0.002,3453.6,3453.5,4.16370035]
[1762593055422,0.002,3453.6,3453.5,5.27941235]
[1762593056523,0.002,3453.6,3453.5,5.30836848]
[1762593057129,0.002,3453.6,3453.5,5.27941235]
[1762593064077,0.002,3453.6,3453.5,5.30836848]
[1762593064975,0.002,3454.3,3454.2,3.30053034]
[1762593065274,0.002,3454.3,3454.2,4.8904926]
[1762593065459,0.002,3454.3,3454.2,5.3357926]
[1762593065769,0.002,3454.3,3454.2,5.42278151]
[1762593066990,0.002,3454.3,3454.2,5.12148151]
[1762593067496,0.002,3454.3,3454.2,5.42278151]
[1762593071277,0.002,3454.3,3454.2,5.45173177]
[1762593071983,0.002,3454.3,3454.2,5.42278151]
[1762593076098,0.002,3455.1,3454.8,3.30002756]
[1762593076587,0.002,3455.1,3454.8,3.44402756]
[1762593076764,0.002,3455.1,3454.8,3.53198967]
[1762593076969,0.002,3455.1,3454.8,3.83328967]
[1762593082008,0.002,3455.1,3454.8,4.13458967]
[1762593082389,0.002,3455.1,3454.8,3.83328967]
[1762593082716,0.002,3455.1,3454.8,2.98248567]
[1762593082717,1.1508,3454.9,3454.8,2.98248567]
[1762593084022,1.1508,3454.9,3454.8,3.01045567]
[1762593086154,0.007,3454.9,3454.8,3.01045567]
[1762593086361,0.007,3454.9,3454.8,3.3407009]
[1762593087562,0.007,3454.9,3454.8,3.71725967]
[1762593087868,0.007,3454.9,3454.8,4.97697167]
[1762593088066,0.007,3454.9,3454.8,5.27827167]
[1762593090515,0.007,3454.9,3454.8,4.97697167]
[1762593092487,0.007,3454.9,3454.8,5.12097167]
[1762593093613,0.007,3454.9,3454.8,4.81967167]
[1762593093820,0.007,3454.9,3454.8,3.55995967]
[1762593094315,0.506,3454.9,3454.8,3.15445567]
[1762593094503,0.7001,3454.9,3454.8,3.15445567]
[1762593094703,1.1648,3454.9,3454.8,3.15445567]
[1762593094881,1.1648,3454.9,3454.8,3.03852356]
[1762593095789,0.007,3454.9,3454.8,3.03852356]
[1762593095983,0.007,3454.9,3454.8,3.36876879]
[1762593096206,0.007,3454.9,3454.8,3.74532756]
[1762593096916,0.007,3454.9,3454.8,5.120971]
[1762593097687,0.007,3454.9,3454.8,6.15657622]
[1762593098587,0.002,3455.1,3455.0,3.29986]
[1762593098792,1e-08,3455.3,3455.2,5.00490446]
[1762593099117,1e-08,3455.3,3455.2,5.14890446]
[1762593099325,1e-08,3455.3,3455.2,5.45020446]
[1762593099624,1e-08,3455.3,3455.2,5.26481138]
[1762593099947,1e-08,3455.3,3455.2,6.30424111]
[1762593100126,1e-08,3455.3,3455.2,6.60554111]
[1762593102130,1e-08,3455.3,3455.2,5.56611138]
[1762593102427,1e-08,3455.3,3455.2,5.59505326]
[1762593102594,1e-08,3455.3,3455.2,5.56611138]
[1762593102790,1e-08,3455.3,3455.2,6.60364004]
[1762593103116,1e-08,3455.3,3455.2,5.56611138]
[1762593104143,1e-08,3455.3,3455.2,5.85646653]
[1762593104306,0.96290001,3455.3,3455.2,4.41380738]
[1762593105132,0.96290001,3455.3,3455.2,3.15409538]
[1762593107246,0.96290001,3455.3,3455.2,3.03818846]
[1762593112559,0.48190001,3455.3,3455.2,3.03818846]
[1762593112733,1e-08,3455.3,3455.2,3.03818846]
[1762593113071,0.48190001,3455.3,3455.2,3.03818846]
[1762593113424,0.96290001,3455.3,3455.2,3.03818846]
[1762593115185,1e-08,3455.3,3455.2,3.06713034]
[1762593115464,1e-08,3455.3,3455.2,3.33948846]
[1762593115668,1e-08,3455.3,3455.2,4.20893901]
[1762593116038,0.48190001,3455.3,3455.2,3.90763901]
[1762593116259,0.96290001,3455.3,3455.2,3.90763901]
[1762593117467,1e-08,3455.3,3455.2,3.90763901]
[1762593117644,1e-08,3455.3,3455.2,4.20893901]
[1762593119791,1e-08,3455.3,3455.2,4.61444301]
[1762593120017,1e-08,3455.3,3455.2,4.64338489]
[1762593120559,1e-08,3455.3,3455.2,4.61444301]
[1762593120761,0.48190001,3455.3,3455.2,4.31314301]
[1762593121002,0.96290001,3455.3,3455.2,4.31314301]
[1762593121563,0.48190001,3455.3,3455.2,4.31314301]
[1762593121997,0.94000001,3455.3,3455.2,4.31314301]
[1762593123007,0.48190001,3455.3,3455.2,4.31314301]
[1762593123204,0.47660001,3455.3,3455.2,4.31314301]
[1762593124079,0.93470001,3455.3,3455.2,4.31314301]
[1762593126490,0.47660001,3455.3,3455.2,4.31314301]
[1762593126792,1e-08,3455.3,3455.2,5.57285501]
[1762593129722,1e-08,3455.3,3455.2,5.87415501]
[1762593131510,1e-08,3455.3,3455.2,5.90309689]
[1762593131705,1e-08,3455.3,3455.2,5.57285501]
[1762593132914,1e-08,3455.3,3455.2,5.90309689]
[1762593134611,1e-08,3455.3,3455.2,5.57285501]
[1762593136905,0.93470001,3455.3,3455.2,1.01345055]
[1762593137112,0.93470001,3455.3,3455.2,3.03818846]
[1762593137854,0.93470001,3455.3,3455.2,0.144]
[1762593138262,1.31796362,3455.3,3455.2,0.144]
[1762593139355,0.93470001,3455.3,3455.2,0.144]
[1762593140752,0.93470001,3455.3,3455.2,3.03818846]
[1762593141369,0.93470001,3455.3,3455.2,0.144]
[1762593146387,0.93470001,3455.3,3455.2,3.03818846]
[1762593146758,0.93470001,3455.3,3455.2,0.144]
[1762593147278,0.93470001,3455.3,3455.2,3.03818846]
[1762593149696,0.93470001,3455.3,3455.2,0.144]
[1762593150160,0.93470001,3455.3,3455.2,3.03818846]
[1762593158590,0.93470001,3455.3,3455.2,0.144]
[1762593159694,0.93470001,3455.3,3455.2,3.03818846]
[1762593159892,0.47660001,3455.3,3455.2,3.03818846]
[1762593160091,0.92780001,3455.3,3455.2,3.03818846]
[1762593162836,0.92780001,3455.3,3455.2,0.144]
[1762593163728,0.92780001,3455.3,3455.2,3.03818846]
[1762593169748,1e-08,3455.3,3455.2,3.03818846]
[1762593170852,0.47100001,3455.3,3455.2,3.03818846]
[1762593173322,1e-08,3455.3,3455.2,3.33948846]
[1762593173524,1e-08,3455.3,3455.2,3.03818846]
[1762593173726,0.47100001,3455.3,3455.2,3.03818846]
[1762593176204,1e-08,3455.3,3455.2,3.33948846]
[1762593176403,1e-08,3455.3,3455.2,4.54623435]
[1762593176609,1e-08,3455.3,3455.2,4.51729247]
[1762593177239,1e-08,3455.3,3455.2,4.54623435]
[1762593177949,1e-08,3455.3,3455.2,5.63300447]
[1762593179041,1e-08,3455.3,3455.2,7.18641231]
[1762593179350,1e-08,3455.3,3455.2,5.63300447]
[1762593180816,1e-08,3455.3,3455.2,5.9669084]
[1762593181024,1e-08,3455.3,3455.2,4.92620047]
[1762593181743,0.45560001,3455.3,3455.2,3.36518847]
[1762593181951,0.45560001,3455.3,3455.2,3.77069247]
[1762593182642,0.45560001,3455.3,3455.2,3.36518847]
[1762593182859,0.92100001,3455.3,3455.2,0.47100001]
[1762593183152,0.92100001,3455.3,3455.1,0.001]
[1762593183336,0.921,3455.2,3455.1,0.001]
[1762593183847,4.48629542,3455.2,3455.1,0.001]
[1762593185051,1.59210696,3455.2,3455.1,0.001]
[1762593185230,4.48629542,3455.2,3455.1,0.001]
[1762593185432,1.59210696,3455.2,3455.1,0.001]
[1762593186444,3.81518846,3455.2,3455.1,0.001]
[1762593187152,0.921,3455.2,3455.1,0.001]
[1762593187963,3.81518846,3455.2,3455.1,0.001]
[1762593188624,5.07490046,3455.2,3455.1,0.001]
[1762593208770,5.22618931,3455.2,3455.1,0.001]
[1762593209079,6.13076588,3455.2,3455.1,0.001]
[1762593212310,6.91026497,3455.2,3455.1,0.001]
[1762593215586,4.30518931,3455.2,3455.1,0.001]
[1762593215886,4.30518931,3455.2,3455.1,0.3023]
[1762593216089,4.76448931,3455.2,3455.1,0.001]
[1762593216283,1.87030085,3455.2,3455.1,0.001]
[1762593216500,0.15128885,3455.2,3455.1,0.4465]
[1762593217804,0.15128885,3455.2,3455.1,0.7478]
[1762593220002,0.15128885,3455.2,3455.1,3.64207223]
[1762593222228,0.15128885,3455.2,3455.1,3.78607223]
[1762593223627,0.15128885,3455.2,3455.1,3.48477223]
[1762593223815,0.15128885,3455.2,3455.1,0.5905]
[1762593224221,0.15128885,3455.2,3455.1,0.4463]
[1762593224420,0.15128885,3455.2,3455.1,0.001]
[1762593225913,0.15128885,3455.2,3455.1,0.3023]
[1762593227446,0.61558885,3455.2,3455.1,0.001]
[1762593227645,1.10058885,3455.2,3455.1,0.001]
[1762593227850,3.99477731,3455.2,3455.1,0.001]
[1762593228349,1.10058885,3455.2,3455.1,0.001]
[1762593228847,3.99477731,3455.2,3455.1,0.001]
[1762593229722,1.10058885,3455.2,3455.1,0.001]
[1762593229928,0.15128885,3455.2,3455.1,0.001]
[1762593233159,0.15128885,3455.2,3455.1,0.4465]
[1762593233658,0.15128885,3455.2,3455.1,3.34077223]
[1762593233847,0.15128885,3455.2,3455.1,3.64207223]
[1762593234064,0.15128885,3455.2,3455.1,3.78607223]
[1762593235337,0.15128885,3455.2,3455.1,3.48477223]
[1762593235542,0.15128885,3455.2,3455.1,3.78607223]
[1762593236177,1e-08,3455.3,3455.2,2.89418846]
[1762593236379,1e-08,3455.3,3455.2,3.49678846]
[1762593237274,1e-08,3455.3,3455.2,3.64078846]
[1762593237477,1e-08,3455.3,3455.2,3.75671587]
[1762593237852,1e-08,3455.3,3455.2,5.01642787]
[1762593238579,1e-08,3455.3,3455.2,5.04536975]
[1762593239382,1e-08,3455.3,3455.2,5.42193187]
[1762593241344,1e-08,3455.3,3455.2,5.01642787]
[1762593248383,1e-08,3455.3,3455.2,3.75671587]
[1762593248582,1e-08,3455.3,3455.2,3.45541587]
[1762593249392,1e-08,3455.3,3455.2,3.33948846]
[1762593252618,0.49020001,3455.3,3455.2,3.03818846]
[1762593252819,0.98830001,3455.3,3455.2,3.03818846]
[1762593253198,0.98830001,3455.3,3455.2,0.144]
[1762593253681,1.37691645,3455.3,3455.2,0.144]
[1762593254382,0.98830001,3455.3,3455.2,0.144]
[1762593255820,0.98830001,3455.3,3455.1,0.001]
[1762593256119,0.9883,3455.2,3455.1,0.145]
[1762593256897,0.9883,3455.2,3455.1,3.03927223]
[1762593257093,0.4902,3455.2,3455.1,3.03927223]
[1762593257821,0.4902,3455.2,3455.1,0.145]
[1762593258026,0.9883,3455.2,3455.1,0.145]
[1762593261292,1.6805373,3455.2,3455.1,0.145]
[1762593262733,1.6805373,3455.2,3455.1,0.001]
[1762593264621,0.9883,3455.2,3455.1,0.001]
[1762593266332,3.88248846,3455.2,3455.1,0.001]
[1762593268334,4.03375528,3455.2,3455.1,0.001]
[1762593269160,1.13956682,3455.2,3455.1,0.001]
[1762593270850,1.13956682,3455.2,3455.1,3.19657223]
[1762593270851,0.15126682,3455.2,3455.1,3.19657223]
[1762593271024,1e-08,3455.3,3455.1,3.34077223]
[1762593271537,1e-08,3455.3,3455.2,2.89418846]
[1762593272247,1e-08,3455.3,3455.2,3.19548846]
[1762593272448,1e-08,3455.3,3455.2,3.33948846]
[1762593272625,1e-08,3455.3,3455.2,0.4453]
[1762593272825,1e-08,3455.3,3455.2,3.33948846]
[1762593276938,1e-08,3455.3,3455.2,3.03818846]
[1762593277348,0.45550001,3455.3,3455.2,0.144]
[1762593277669,0.45550001,3455.3,3455.2,3.03818846]
[1762593277976,0.45550001,3455.3,3455.2,0.144]
[1762593278283,0.92780001,3455.3,3455.1,0.001]
[1762593278440,0.4555,3455.2,3455.1,0.001]
[1762593278643,0.9278,3455.2,3455.1,0.001]
[1762593283760,1e-08,3455.3,3455.1,2.89527223]
[1762593284492,1e-08,3455.3,3455.1,0.001]
[1762593284697,1e-08,3455.3,3455.1,2.89524153]
[1762593285086,1e-08,3455.3,3455.1,0.001]
[1762593285496,1e-08,3455.3,3455.1,2.89525003]
[1762593288927,1e-08,3455.3,3455.1,0.001]
[1762593289237,1e-08,3455.3,3455.1,2.89522812]
[1762593290189,1e-08,3455.3,3455.1,2.89525218]
[1762593290827,0.45130001,3455.3,3455.1,2.89525218]
[1762593291026,0.45130001,3455.3,3455.1,0.001]
[1762593291195,0.4535,3455.2,3455.1,0.001]
[1762593291531,0.9048,3455.2,3455.1,0.001]
[1762593293227,0.9048,3455.2,3455.1,2.89527223]
[1762593293427,0.4535,3455.2,3455.1,2.89527223]
[1762593293731,0.4535,3455.2,3455.1,0.001]
[1762593294431,0.9048,3455.2,3455.1,0.001]
[1762593299622,3.79898846,3455.2,3455.1,0.001]
[1762593299822,4.46849567,3455.2,3455.1,0.001]
[1762593301534,4.61976355,3455.2,3455.1,0.001]
[1762593303734,1.72557509,3455.2,3455.1,0.001]
[1762593304577,1.27427509,3455.2,3455.1,0.001]
[1762593304778,1.76947509,3455.2,3455.1,0.001]
[1762593304943,4.66366355,3455.2,3455.1,0.001]
[1762593307664,1.76947509,3455.2,3455.1,0.001]
[1762593307872,4.66366355,3455.2,3455.1,0.001]
[1762593309678,7.11048014,3455.2,3455.1,0.001]
[1762593309839,3.29994378,3454.9,3454.8,0.001]
[1762593310038,4.70373956,3454.8,3454.7,0.001]
[1762593310344,4.55990713,3454.6,3454.5,0.001]
[1762593310565,6.05682635,3454.6,3454.5,0.001]
[1762593310764,6.55202635,3454.6,3454.5,0.001]
[1762593311474,5.51040713,3454.6,3454.5,0.001]
[1762593311661,7.0483898,3454.6,3454.5,0.001]
[1762593312443,7.8271318,3454.6,3454.5,0.001]
[1762593314475,7.0483898,3454.6,3454.5,0.001]
[1762593319072,6.6428858,3454.6,3454.5,0.001]
[1762593319969,7.0483898,3454.6,3454.5,0.001]
[1762593325979,6.1476858,3454.6,3454.5,0.001]
[1762593326204,1.259712,3454.6,3454.5,0.001]
[1762593326403,2.89460705,3454.8,3454.5,0.3053]
[1762593326606,2.89461341,3454.7,3454.5,0.3053]
[1762593326810,1.259712,3454.7,3454.5,0.3053]
[1762593326978,1.259712,3454.7,3454.6,0.3043]
[1762593327180,4.15431934,3454.7,3454.6,0.3043]
[1762593328005,0.144,3454.6,3454.5,0.001]
[1762593328314,2.89452963,3454.8,3454.5,0.001]
[1762593328486,2.89452963,3454.8,3454.5,0.3053]
[1762593328919,2.8946119,3454.7,3454.5,0.3053]
[1762593329115,1.715012,3454.6,3454.5,0.001]
[1762593329495,1.259712,3454.6,3454.5,0.001]
[1762593330207,4.15440313,3454.6,3454.5,0.001]
[1762593331985,4.3057005,3454.6,3454.5,0.001]
[1762593332886,4.7703005,3454.6,3454.5,0.001]
[1762593333951,1.41100937,3454.6,3454.5,0.3053]
[1762593334419,4.3057005,3454.6,3454.5,0.3053]
[1762593335040,4.3057005,3454.6,3454.5,0.001]
[1762593336607,4.3057005,3454.6,3454.5,0.3053]
[1762593336808,1.41100937,3454.6,3454.1,2.89508579]
[1762593337208,1.41100937,3454.6,3453.9,2.89521214]
[1762593337406,1.41100937,3454.6,3454.0,2.89518829]
[1762593337641,4.30571139,3454.6,3454.0,2.89518829]
[1762593338346,2.8947777,3454.5,3454.0,0.144]
[1762593339608,2.8947777,3454.5,3454.0,3.0391841]
[1762593340323,4.44972654,3454.6,3454.0,3.0391841]
[1762593340627,1.55500937,3454.6,3454.0,0.144]
[1762593341062,2.89487056,3454.4,3454.0,0.144]
[1762593341966,2.89479568,3454.5,3454.0,0.144]
[1762593343362,1.55500937,3454.6,3454.1,2.89506454]
[1762593343763,1.55500937,3454.6,3453.9,2.89521825]
[1762593343764,0.15129737,3454.6,3454.5,2.89477493]
[1762593343971,0.002,3454.7,3454.6,4.15440313]
[1762593344168,0.002,3454.7,3454.6,5.61174782]
[1762593344377,0.002,3454.7,3454.6,4.94759698]
[1762593344677,0.002,3454.7,3454.6,6.10286605]
[1762593344876,0.002,3454.7,3454.6,5.06352607]
[1762593345041,0.002,3454.7,3454.6,5.09247298]
[1762593345233,0.002,3454.7,3454.6,5.06352607]
[1762593345855,0.002,3454.7,3454.6,6.13065526]
[1762593346063,0.002,3454.7,3454.6,6.10170835]
[1762593347438,1e-08,3455.1,3455.0,4.559572]
[1762593352048,1e-08,3455.1,3455.0,4.154068]
[1762593352721,1e-08,3455.1,3454.0,1.03818228]
[1762593352870,1e-08,3455.1,3453.8,1.55340784]
[1762593352871,0.47200001,3455.1,3454.9,2.89437345]
[1762593353771,0.47200001,3455.1,3455.0,0.144]
[1762593354167,0.94860001,3455.1,3455.0,0.144]
[1762593355090,0.94860001,3455.1,3455.0,3.038356]
[1762593355301,1e-08,3455.1,3455.0,3.038356]
[1762593358563,1e-08,3455.1,3455.0,0.144]
[1762593358764,1e-08,3455.1,3455.0,3.038356]
[1762593361109,0.93070001,3455.1,3455.0,0.144]
[1762593361297,0.93070001,3455.1,3455.0,3.038356]
[1762593361501,0.93070001,3455.1,3455.0,0.144]
[1762593361903,0.93070001,3455.1,3455.0,3.038356]
[1762593362100,1e-08,3455.1,3455.0,2.894356]
[1762593362413,0.93070001,3455.1,3455.0,0.144]
[1762593362922,1.31337238,3455.1,3455.0,0.144]
[1762593363217,0.93070001,3455.1,3454.6,3.03866992]
[1762593363414,0.4627,3455.0,3454.6,3.03866992]
[1762593363879,0.1987,3454.9,3454.6,3.03866992]
[1762593364411,0.468,3454.7,3454.6,3.03866992]
[1762593366584,0.9307,3454.7,3454.6,3.03866992]
[1762593367311,0.9307,3454.7,3454.6,0.03866992]
[1762593367514,0.9307,3454.7,3454.6,2.93331373]
[1762593369232,0.9307,3454.7,3454.6,0.03866992]
[1762593369449,0.9307,3454.7,3454.6,2.93336105]
[1762593369738,0.9307,3454.7,3454.6,0.03866992]
[1762593369881,0.9307,3454.7,3454.6,2.93436105]
[1762593370198,0.9327,3454.7,3454.6,2.93436105]
[1762593371816,0.9327,3454.7,3454.6,0.001]
[1762593372701,1.3496871,3454.7,3454.6,0.001]
[1762593372918,1.0767,3454.7,3454.6,0.001]
[1762593373428,1.0767,3454.7,3454.6,2.89569113]
[1762593373636,0.9327,3454.7,3454.6,2.89569113]
[1762593373813,0.002,3454.7,3454.6,2.89569113]
[1762593374013,0.002,3454.7,3454.6,2.92463804]
[1762593374183,0.002,3454.7,3454.6,3.03969113]
[1762593376511,0.002,3454.7,3454.6,4.29940313]
[1762593382837,0.002,3454.7,3454.6,4.32835004]
[1762593383001,0.002,3454.7,3454.6,5.36653232]
[1762593383202,0.002,3454.7,3454.6,5.48246947]
[1762593383397,0.002,3454.7,3454.6,5.88797347]
[1762593383626,0.002,3454.7,3454.6,6.37425212]
[1762593384195,0.002,3454.7,3454.6,4.82084428]
[1762593386846,0.002,3454.7,3454.6,5.45631099]
[1762593387045,0.002,3454.7,3454.6,4.41534028]
[1762593387252,0.002,3454.7,3454.6,4.29940313]
[1762593388252,0.47,3454.7,3454.6,3.03969113]
[1762593388435,0.9327,3454.7,3454.6,3.03969113]
[1762593388643,0.47,3454.7,3454.6,3.03969113]
[1762593389113,0.9327,3454.7,3454.6,0.145]
[1762593389670,1.33527778,3454.7,3454.6,0.001]
[1762593390280,0.9327,3454.7,3454.6,0.001]
[1762593390680,0.9327,3454.7,3454.6,2.89569113]
[1762593391048,0.9327,3454.7,3454.6,3.03969113]
[1762593391742,0.47,3454.7,3454.6,3.03969113]
[1762593391943,0.002,3454.7,3454.6,3.03969113]
[1762593392143,0.002,3454.7,3454.6,3.06863804]
[1762593392460,0.002,3454.7,3454.6,3.03969113]
[1762593396758,0.002,3454.7,3454.6,3.44519513]
[1762593397860,0.002,3454.7,3454.6,3.03969113]
[1762593399286,0.481,3454.7,3454.6,3.03969113]
[1762593400162,0.9323,3454.7,3454.6,3.03969113]
[1762593410616,0.9323,3454.7,3454.6,0.145]
[1762593411721,0.9323,3454.7,3454.6,3.03969113]
[1762593411924,0.9323,3454.7,3454.6,0.145]
[1762593412146,0.9323,3454.7,3454.6,3.03969113]
[1762593413860,0.9323,3454.7,3454.6,0.145]
[1762593414253,0.9323,3454.7,3454.6,3.03969113]
[1762593415067,0.9323,3454.7,3454.6,0.145]
[1762593415471,1.34832735,3454.7,3454.6,0.145]
[1762593415636,0.9323,3454.7,3454.6,0.145]
[1762593417229,0.9323,3454.7,3454.6,0.001]
[1762593417848,0.9323,3454.7,3454.6,2.89569113]
[1762593418265,0.9323,3454.7,3454.6,0.001]
[1762593420408,3.82690734,3454.7,3454.6,0.001]
[1762593420702,4.67640097,3454.7,3454.6,0.001]
[1762593421250,4.67640097,3454.7,3454.2,0.001]
[1762593421251,2.89494253,3454.3,3454.2,0.001]
[1762593421450,3.36134253,3454.3,3454.2,0.001]
[1762593421800,5.08825453,3454.3,3454.2,0.001]
[1762593425467,2.193312,3454.3,3454.2,0.001]
[1762593425683,0.45412308,3454.5,3454.2,0.001]
[1762593425992,0.4664,3454.3,3454.2,0.001]
[1762593426193,3.36134253,3454.3,3454.2,0.001]
[1762593426378,3.82854253,3454.3,3454.2,0.001]
[1762593426793,2.89519397,3454.0,3453.4,0.001]
[1762593426957,4.033976,3454.0,3453.4,0.001]
[1762593427297,4.501176,3454.0,3453.4,0.001]
[1762593427814,1.60598203,3454.0,3453.4,0.001]
[1762593427968,1.60598203,3454.0,3453.6,2.89552163]
[1762593428166,0.9336,3454.0,3453.5,2.89558046]
[1762593428708,0.9336,3454.0,3453.4,0.001]
[1762593429207,0.9336,3454.0,3453.6,2.89552]
[1762593429805,0.9336,3454.0,3453.7,2.8954334]
[1762593430221,0.9336,3454.0,3453.7,2.89540977]
[1762593430366,0.9336,3454.0,3453.6,2.89550084]
[1762593430808,0.9336,3454.0,3453.5,2.89557136]
[1762593430967,0.9336,3454.0,3453.7,2.895379]
[1762593431306,0.9336,3454.0,3453.6,2.89549545]
[1762593431802,0.9336,3454.0,3453.4,0.001]
[1762593432013,0.9336,3454.0,3453.6,0.144]
[1762593432375,0.144,3454.2,3453.6,0.144]
[1762593432601,0.4672,3454.5,3454.2,2.89497365]
[1762593432914,0.4672,3454.5,3454.0,3.03919397]
[1762593432915,0.4672,3454.5,3454.1,2.89509509]
[1762593433619,0.4672,3454.5,3454.0,3.03915983]
[1762593433780,0.4672,3454.5,3454.0,0.144]
[1762593434104,0.4672,3454.5,3454.0,3.03914579]
[1762593434270,0.4672,3454.5,3454.0,0.144]
[1762593434472,0.4672,3454.5,3454.1,2.8950425]
[1762593434926,0.144,3454.6,3454.2,2.89497583]
[1762593435130,0.002,3454.7,3454.3,2.89490276]
[1762593435426,0.4672,3454.6,3454.3,3.03890276]
[1762593436131,0.4672,3454.6,3454.5,2.89477493]
[1762593436329,0.002,3454.7,3454.3,0.144]
[1762593436530,0.002,3454.7,3454.5,2.89470833]
[1762593436831,0.002,3454.6,3454.4,2.89482759]
[1762593437636,0.002,3454.6,3454.3,0.144]
[1762593437815,0.002,3454.6,3454.5,2.89477493]
[1762593438134,0.002,3454.6,3454.5,2.92372267]
[1762593438296,0.002,3454.6,3454.5,3.06772267]
[1762593438681,0.002,3454.6,3454.5,3.03877493]
[1762593440261,0.002,3454.6,3454.5,2.89477493]
[1762593440760,0.002,3454.6,3454.5,2.92372267]
[1762593440943,0.002,3454.6,3454.5,2.89477493]
[1762593444761,0.4684,3454.6,3454.5,2.89477493]
[1762593444940,0.4684,3454.6,3453.9,0.001]